bitfinex/quotes_SOLUSD_20250107
["timestamp","ask_amount","ask_price","bid_price","bid_amount"]
[1736285617282,0.12549,204.22,204.07,23.776884]
[1736285617482,0.12549,204.22,204.07,26.176884]
[1736285617782,23.902374,204.22,204.07,26.176884]
[1736285618085,0.12549,204.19,204.07,2.4]
[1736285618881,20.12549,204.19,204.07,26.176884]
[1736285626093,20.12549,204.19,204.07,2.4]
[1736285627770,20.12549,204.19,204.07,26.176884]
[1736285631399,20.12549,204.19,204.07,2.4]
[1736285632421,20.12549,204.19,204.04,23.776884]
[1736285632697,20.12549,204.19,204.05,2.4]
[1736285633280,20.12549,204.19,204.06,23.776884]
[1736285644022,4.36612377,204.22,204.06,23.776884]
[1736285644331,20.0,204.2,204.1,33.00308827]
[1736285644620,0.12549,204.19,204.1,23.776884]
[1736285644940,0.12549,204.19,204.1,24.51161235]
[1736285645413,0.12549,204.2,204.1,24.51161235]
[1736285646222,0.12549,204.2,204.1,33.73781662]
[1736285647440,0.12549,204.2,204.1,24.51161235]
[1736285649226,0.12549,204.2,204.12,23.776884]
[1736285649532,0.12549,204.2,204.12,24.5114706]
[1736285650319,0.12549,204.2,204.1,23.776884]
[1736285650518,0.12549,204.2,204.1,24.51153402]
[1736285650833,0.12549,204.2,204.1,33.73773829]
[1736285651331,0.12549,204.2,204.1,23.776884]
[1736285651634,0.12549,204.2,204.07,6.5819]
[1736285651839,0.12549,204.2,204.08,23.776884]
[1736285652636,19.33,204.21,204.08,23.776884]
[1736285653215,19.33,204.21,204.06,9.96088071]
[1736285653408,19.33,204.21,204.05,2.4]
[1736285653733,19.33,204.21,204.07,23.776884]
[1736285654914,19.33,204.21,204.04,1.6071]
[1736285655248,19.33,204.21,204.08,9.22620427]
[1736285655446,19.33,204.21,204.11,9.22620427]
[1736285655945,1.7486,204.23,204.12,9.9608314]
[1736285656117,1.7486,204.23,204.14,7.52508269]
[1736285656318,0.12549,204.22,204.14,7.52508269]
[1736285656528,20.0,204.21,204.15,7.52508269]
[1736285657854,20.0,204.21,204.16,7.52508269]
[1736285659152,20.0,204.21,204.16,9.22620427]
[1736285659525,20.0,204.21,204.15,33.00308827]
[1736285659726,20.0,204.21,204.15,23.776884]
[1736285659955,20.0,204.21,204.16,7.52508269]
[1736285660523,20.0,204.21,204.14,7.52508269]
[1736285661052,20.0,204.21,204.12,7.52508269]
[1736285661873,1.7486,204.2,204.11,7.52508269]
[1736285662639,1.7486,204.2,204.1,7.52508269]
[1736285664263,1.7486,204.2,204.09,7.52508269]
[1736285666461,3.7480154,204.2,204.09,7.52508269]
[1736285667483,1.7486,204.2,204.09,23.776884]
[1736285668060,1.7486,204.2,204.09,14.41571627]
[1736285668565,20.0,204.21,204.12,14.41571627]
[1736285668771,27.83385948,204.24,204.14,38.19260027]
[1736285669078,1.7486,204.31,204.17,14.41571627]
[1736285669469,0.12549,204.3,204.17,14.41571627]
[1736285669647,0.12549,204.3,204.16,14.41571627]
[1736285669848,0.12549,204.3,204.17,7.66604556]
[1736285670556,0.12549,204.3,204.18,23.776884]
[1736285670744,0.12549,204.3,204.18,38.19260027]
[1736285670947,0.12549,204.3,204.18,23.776884]
[1736285672044,0.12549,204.3,204.18,38.19260027]
[1736285672243,0.12549,204.3,204.18,45.85864583]
[1736285673359,0.12549,204.3,204.19,0.73438115]
[1736285673764,0.12549,204.3,204.18,45.85864583]
[1736285674058,0.12549,204.3,204.18,46.59305067]
[1736285674259,0.12549,204.3,204.19,30.0]
[1736285674974,0.12549,204.3,204.19,44.41571627]
[1736285675356,0.12549,204.3,204.19,30.0]
[1736285676085,0.12549,204.3,204.18,32.1773344]
[1736285676481,0.12549,204.3,204.18,24.51128884]
[1736285676788,0.12549,204.3,204.2,14.41571627]
[1736285676965,0.12549,204.3,204.22,23.776884]
[1736285677288,1.7486,204.36,204.22,23.776884]
[1736285677476,1.7486,204.36,204.23,14.41571627]
[1736285677860,0.12549,204.35,204.23,14.41571627]
[1736285678864,0.12549,204.35,204.23,44.41571627]
[1736285679691,0.12549,204.35,204.25,14.41571627]
[1736285680007,0.12549,204.35,204.25,44.41571627]
[1736285681156,0.12549,204.35,204.26,23.776884]
[1736285681357,22.4,204.4,204.28,23.776884]
[1736285681358,2.4,204.4,204.28,23.776884]
[1736285681664,0.12549,204.39,204.28,23.776884]
[1736285681877,0.12549,204.39,204.27,23.776884]
[1736285682077,0.12549,204.39,204.27,26.176884]
[1736285682283,0.12549,204.4,204.28,30.0]
[1736285682581,0.12549,204.4,204.29,23.776884]
[1736285684491,0.12549,204.4,204.29,53.776884]
[1736285684695,0.12549,204.4,204.28,23.776884]
[1736285685174,0.12549,204.4,204.31,38.19260027]
[1736285685380,4.1486,204.49,204.31,38.19260027]
[1736285685579,0.12549,204.46,204.3,14.41571627]
[1736285685777,20.12549,204.46,204.3,14.41571627]
[1736285686092,20.12549,204.46,204.31,38.19260027]
[1736285686292,20.12549,204.46,204.31,23.776884]
[1736285687303,20.12549,204.46,204.29,32.98117163]
[1736285687480,20.12549,204.46,204.29,23.776884]
[1736285687891,20.12549,204.46,204.24,1.5548]
[1736285687892,0.12549,204.41,204.24,1.5548]
[1736285688078,0.12549,204.41,204.29,11.60428763]
[1736285688281,0.12549,204.41,204.32,9.20428763]
[1736285688493,0.12549,204.44,204.32,9.20428763]
[1736285688695,20.12549,204.44,204.32,9.20428763]
[1736285689701,20.12549,204.44,204.31,9.20428763]
[1736285689900,20.12549,204.44,204.31,23.776884]
[1736285690304,20.12549,204.44,204.31,32.98117163]
[1736285692806,20.12549,204.44,204.31,23.776884]
[1736285694381,20.12549,204.44,204.31,32.98117163]
[1736285696777,20.12549,204.44,204.31,23.776884]
[1736285697528,0.12549,204.44,204.31,32.98117163]
[1736285697814,2.06983392,204.44,204.31,32.98117163]
[1736285698313,2.06983392,204.44,204.33,23.776884]
[1736285699028,0.12549,204.44,204.33,32.98117163]
[1736285700716,0.12549,204.44,204.33,23.776884]
[1736285701414,0.12549,204.44,204.33,9.20428763]
[1736285701913,0.12549,204.44,204.33,23.776884]
[1736285702543,0.12549,204.44,204.33,9.20428763]
[1736285703701,0.12549,204.44,204.3,0.7338694]
[1736285703702,0.12549,204.44,204.37,9.20428763]
[1736285703892,26.19574664,204.49,204.38,9.20428763]
[1736285704293,0.12549,204.48,204.38,9.20428763]
[1736285704817,0.12549,204.45,204.38,9.20428763]
[1736285704998,0.12549,204.45,204.37,23.776884]
[1736285707328,0.12549,204.48,204.37,32.98117163]
[1736285707543,0.12549,204.48,204.37,23.776884]
[1736285707698,0.12549,204.46,204.36,2.4]
[1736285707903,0.12549,204.46,204.29,0.73383731]
[1736285708127,0.12549,204.46,204.3,2.4]
[1736285708427,0.12549,204.42,204.3,2.4]
[1736285708637,0.12549,204.42,204.27,17.05888763]
[1736285708937,0.12549,204.42,204.3,2.4]
[1736285709307,0.12549,204.42,204.31,23.776884]
[1736285709509,0.12549,204.42,204.32,9.20428763]
[1736285709722,1.7486,204.47,204.34,23.776884]
[1736285710311,0.12549,204.46,204.34,23.776884]
[1736285712929,0.12549,204.46,204.31,14.37696907]
[1736285713433,0.12549,204.42,204.29,14.37696907]
[1736285713629,0.12549,204.42,204.3,2.4]
[1736285714033,0.12549,204.42,204.31,38.15385307]
[1736285715344,0.12549,204.42,204.32,14.37696907]
[1736285715527,1.7486,204.47,204.34,14.37696907]
[1736285716130,0.12549,204.46,204.34,14.37696907]
[1736285716442,0.12549,204.46,204.33,14.37696907]
[1736285717045,0.12549,204.46,204.33,23.776884]
[1736285717228,0.12549,204.46,204.33,14.37696907]
[1736285717564,0.12549,204.46,204.33,23.776884]
[1736285718819,0.12549,204.42,204.29,14.37696907]
[1736285719019,0.12549,204.42,204.3,2.38]
[1736285721527,0.12549,204.42,204.3,16.75696907]
[1736285722049,0.12549,204.42,204.3,2.38]
[1736285725080,0.12549,204.4,204.3,2.38]
[1736285725758,0.12549,204.4,204.27,14.37696907]
[1736285725759,0.12549,204.4,204.28,2.38]
[1736285725960,0.12549,204.4,204.27,2.38]
[1736285728839,0.12549,204.4,204.25,14.37696907]
[1736285729039,0.12549,204.4,204.23,8.35515896]
[1736285729040,0.12549,204.4,204.26,26.156884]
[1736285729537,0.12549,204.4,204.25,23.776884]
[1736285729743,0.12549,204.4,204.26,2.38]
[1736285730771,20.0,204.37,204.26,2.38]
[1736285730977,0.12549,204.36,204.26,2.38]
[1736285731338,0.12549,204.36,204.23,7.62101393]
[1736285731539,0.12549,204.34,204.23,7.62101393]
[1736285732256,0.12549,204.34,204.22,2.38]
[1736285733067,0.12549,204.34,204.23,32.98736209]
[1736285733369,0.12549,204.34,204.23,23.776884]
[1736285734962,0.12549,204.34,204.22,2.38]
[1736285735161,0.12549,204.34,204.2,23.776884]
[1736285735348,0.12549,204.3,204.2,2.38]
[1736285735661,0.12549,204.3,204.19,7.62101393]
[1736285735865,0.12549,204.3,204.18,2.38]
[1736285736059,21.7486,204.35,204.22,9.21047809]
[1736285736564,0.12549,204.34,204.21,9.21047809]
[1736285736761,20.12549,204.34,204.21,9.21047809]
[1736285736947,3.70849235,204.35,204.22,9.21047809]
[1736285737145,3.70849235,204.35,204.25,9.21047809]
[1736285737349,1.7486,204.35,204.26,9.21047809]
[1736285737655,1.7486,204.35,204.24,9.21047809]
[1736285738261,1.7486,204.35,204.25,23.776884]
[1736285738461,1.7486,204.35,204.21,9.21047809]
[1736285738679,1.7486,204.35,204.19,23.776884]
[1736285738834,1.7486,204.35,204.19,32.98736209]
[1736285739384,1.7486,204.35,204.19,38.17317241]
[1736285740101,0.12549,204.3,204.18,2.38]
[1736285740368,0.12549,204.3,204.15,14.39628841]
[1736285740532,0.12549,204.3,204.18,23.776884]
[1736285745472,0.12549,204.3,204.14,14.39628841]
[1736285745658,0.12549,204.26,204.11,2.38]
[1736285745860,1.7486,204.29,204.11,2.38]
[1736285745861,0.12549,204.24,204.11,2.38]
[1736285746369,0.12549,204.24,204.1,11.00101393]
[1736285746576,0.12549,204.22,204.1,3.38]
[1736285746775,0.12549,204.22,204.1,1.0]
[1736285750364,0.12549,204.18,204.1,1.0]
[1736285751184,0.12549,204.14,204.1,1.0]
[1736285752005,2.38,204.19,204.1,1.0]
[1736285752309,0.12549,204.17,204.1,1.0]
[1736285753372,6.7486,204.23,204.1,1.0]
[1736285753373,21.7486,204.23,204.1,1.0]
[1736285753582,2.38,204.21,204.1,1.0]
[1736285753797,0.12549,204.17,204.1,1.0]
[1736285757792,0.12549,204.15,204.01,1.5534]
[1736285757995,0.12549,204.13,204.01,1.5534]
[1736285758299,0.12549,204.13,204.02,14.39628841]
[1736285758505,1.7486,204.16,204.03,38.17317241]
[1736285758820,0.12549,204.13,204.03,23.776884]
[1736285760309,0.12549,204.13,204.02,14.39628841]
[1736285760310,0.12549,204.13,204.02,23.776884]
[1736285766822,0.12549,204.13,204.01,1.5534]
[1736285767396,0.12549,204.13,204.0,50.0]
[1736285769411,0.12549,204.09,204.0,50.0]
[1736285775631,2.09024203,204.09,204.0,50.0]
[1736285779435,0.12549,204.04,204.0,50.0]
[1736285779810,3.71335203,204.09,204.0,50.0]
[1736285780004,2.38,204.1,204.0,50.0]
[1736285780521,20.12549,204.06,204.0,50.0]
[1736285781831,2.38,204.1,204.0,56.1032]
[1736285782027,20.12549,204.09,204.0,56.1032]
[1736285782528,0.12549,203.99,203.9,8.0341]
[1736285782729,0.12549,203.99,203.86,7.62101393]
[1736285782730,0.12549,203.93,203.86,7.62101393]
[1736285782927,20.12549,203.93,203.86,7.62101393]
[1736285783235,20.12549,203.89,203.84,15.24202786]
[1736285783410,22.50549,203.89,203.84,15.24202786]
[1736285783813,2.50549,203.89,203.8,1.6331]
[1736285784317,20.0,203.93,203.8,1.6331]
[1736285784515,0.12549,203.91,203.8,1.6331]
[1736285786035,10.0,203.95,203.8,1.6331]
[1736285786036,2.38,203.95,203.83,14.39628841]
[1736285786354,2.38,203.95,203.84,14.39628841]
[1736285786651,0.12549,203.94,203.83,14.39628841]
[1736285787334,0.12549,203.94,203.83,23.776884]
[1736285787648,0.12549,203.94,203.8,16.02938841]
[1736285787953,0.12549,203.94,203.8,1.6331]
[1736285788112,0.12549,203.94,203.81,23.776884]
[1736285788307,20.12549,203.94,203.8,1.6331]
[1736285789226,0.12549,203.89,203.8,1.6331]
[1736285789638,0.12549,203.87,203.8,1.6331]
[1736285790120,5.0,203.98,203.8,1.6331]
[1736285790440,0.12549,203.91,203.8,1.6331]
[1736285791017,0.12549,203.91,203.81,23.776884]
[1736285791234,0.12549,203.91,203.8,1.6331]
[1736285793350,0.12549,203.87,203.8,1.6331]
[1736285794051,20.12549,203.91,203.8,1.6331]
[1736285794263,23.776884,203.9,203.8,1.6331]
[1736285794553,20.12549,203.86,203.79,6.401]
[1736285794921,0.12549,203.84,203.79,6.401]
[1736285796644,0.12549,203.84,203.75,1.5779]
[1736285799165,2.11408007,203.84,203.75,1.5779]
[1736285803359,22.11408007,203.84,203.7,1.5336]
[1736285805131,0.12549,203.79,203.7,1.5336]
[1736285808455,0.12549,203.77,203.7,1.5336]
[1736285811131,20.0,203.8,203.7,1.5336]
[1736285811331,22.38,203.8,203.7,1.5336]
[1736285811635,2.38,203.8,203.7,1.5336]
[1736285811840,0.12549,203.79,203.7,1.5336]
[1736285812352,0.12549,203.79,203.69,6.5723]
[1736285814234,0.12549,203.75,203.65,1.5415]
[1736285815571,0.12549,203.75,203.61,14.39628841]
[1736285815766,0.12549,203.75,203.54,5.0]
[1736285815767,6.87409,203.75,203.54,7.8364]
[1736285816131,20.0,203.71,203.54,7.8364]
[1736285816331,2.50549,203.7,203.54,7.8364]
[1736285816733,0.12549,203.65,203.49,1.6255]
[1736285817163,2.50549,203.65,203.53,14.39628841]
[1736285817691,2.50549,203.65,203.51,14.39628841]
[1736285818534,2.50549,203.65,203.5,38.17317241]
[1736285820792,2.50549,203.65,203.52,14.39628841]
[1736285821200,2.50549,203.65,203.54,14.39628841]
[1736285821660,2.50549,203.65,203.54,23.776884]
[1736285822080,0.12549,203.65,203.52,23.776884]
[1736285822252,0.12549,203.65,203.54,14.39628841]
[1736285822654,0.12549,203.65,203.54,23.776884]
[1736285823385,0.12549,203.65,203.54,14.39628841]
[1736285823587,0.12549,203.65,203.53,14.39628841]
[1736285823755,23.902374,203.63,203.49,0.73674917]
[1736285823955,25.0,203.6,203.38,7.7517]
[1736285824292,1.7486,203.64,203.4,30.0]
[1736285824293,0.12549,203.54,203.4,30.0]
[1736285824589,20.0,203.56,203.4,30.0]
[1736285824791,1.7486,203.55,203.4,30.0]
[1736285825093,0.12549,203.49,203.38,7.7517]
[1736285825294,0.12549,203.48,203.38,1.6201]
[1736285825452,0.12549,203.48,203.32,6.1316]
[1736285825646,0.12549,203.48,203.33,0.02476468]
[1736285825850,2.38,203.48,203.35,14.39628841]
[1736285826085,0.12549,203.47,203.35,14.39628841]
[1736285826290,0.12549,203.47,203.38,23.776884]
[1736285826686,0.12549,203.5,203.38,23.776884]
[1736285826896,0.12549,203.5,203.36,14.39628841]
[1736285827098,0.12549,203.5,203.35,38.17317241]
[1736285827303,0.12549,203.5,203.35,46.99892287]
[1736285828193,0.12549,203.5,203.39,23.776884]
[1736285828494,0.12549,203.5,203.42,1.66]
[1736285829713,20.12549,203.5,203.35,1.6132]
[1736285829881,20.12549,203.49,203.35,1.6132]
[1736285830403,0.12549,203.44,203.32,6.1316]
[1736285831686,2.38,203.48,203.35,23.776884]
[1736285831886,2.38,203.48,203.35,46.99892287]
[1736285832081,20.0,203.51,203.37,46.99892287]
[1736285832291,2.38,203.52,203.39,23.776884]
[1736285832779,0.12549,203.51,203.4,1.5891]
[1736285833511,0.12549,203.51,203.41,23.776884]
[1736285833671,20.12549,203.51,203.41,23.776884]
[1736285837320,20.12549,203.51,203.42,6.4097]
[1736285838112,20.12549,203.51,203.43,23.776884]
[1736285838310,2.38,203.57,203.43,23.776884]
[1736285838493,2.38,203.58,203.43,23.776884]
[1736285838909,0.12549,203.59,203.43,46.99892287]
[1736285839088,2.38,203.6,203.46,23.22203887]
[1736285839281,2.38,203.6,203.47,23.776884]
[1736285839625,0.12549,203.59,203.47,46.99892287]
[1736285839786,0.12549,203.59,203.46,23.22203887]
[1736285839981,4.31486177,203.63,203.49,46.99892287]
[1736285840190,2.38,203.63,203.52,23.776884]
[1736285840683,0.12549,203.62,203.51,8.0153]
[1736285843016,0.12549,203.64,203.51,8.0153]
[1736285843307,0.12549,203.64,203.52,46.99892287]
[1736285843816,0.12549,203.67,203.52,23.776884]
[1736285844892,0.12549,203.67,203.51,8.0153]
[1736285845399,0.12549,203.67,203.54,23.776884]
[1736285845587,0.12549,203.67,203.54,46.99892287]
[1736285846619,0.12549,203.67,203.54,23.776884]
[1736285849304,0.12549,203.67,203.54,23.22203887]
[1736285850521,0.12549,203.67,203.54,46.99892287]
[1736285850721,0.12549,203.67,203.55,23.776884]
[1736285850894,0.12549,203.67,203.54,23.776884]
[1736285850895,0.12549,203.67,203.53,2.38]
[1736285851095,0.12549,203.67,203.51,8.0153]
[1736285851334,0.12549,203.65,203.51,8.0153]
[1736285852626,0.12549,203.65,203.46,10.4988]
[1736285852627,20.12549,203.65,203.46,10.4988]
[1736285852811,20.12549,203.65,203.47,23.776884]
[1736285853332,20.12549,203.65,203.46,8.1188]
[1736285854104,20.12549,203.65,203.47,23.776884]
[1736285855630,20.0,203.61,203.46,8.1188]
[1736285855929,0.12549,203.6,203.46,8.1188]
[1736285857918,0.12549,203.6,203.41,6.4793]
[1736285858421,0.12549,203.6,203.41,8.8593]
[1736285858838,0.12549,203.56,203.41,6.4793]
[1736285859027,20.12549,203.56,203.41,6.4793]
[1736285859341,20.12549,203.56,203.42,23.776884]
[1736285859907,20.12549,203.56,203.41,6.4793]
[1736285861110,20.12549,203.56,203.42,23.776884]
[1736285861843,20.12549,203.56,203.41,6.4793]
[1736285864566,0.12549,203.46,203.28,7.8585]
[1736285864731,2.38,203.45,203.28,7.8585]
[1736285865157,0.12549,203.44,203.28,7.8585]
[1736285866354,0.12549,203.44,203.4,1.0]
[1736285868336,0.12549,203.43,203.4,1.0]
[1736285869160,21.7486,203.49,203.4,1.0]
[1736285869338,2.38,203.45,203.4,1.0]
[1736285869526,2.38,203.47,203.4,1.0]
[1736285870356,3.69133871,203.49,203.4,1.0]
[1736285870357,2.50549,203.48,203.4,1.0]
[1736285871638,0.12549,203.45,203.4,1.0]
[1736285874572,0.12549,203.45,203.28,7.8585]
[1736285874865,0.12549,203.45,203.29,23.776884]
[1736285880480,0.12549,203.45,203.28,7.8585]
[1736285881167,20.0,203.42,203.28,7.8585]
[1736285881372,2.50549,203.41,203.28,7.8585]
[1736285885062,4.52509672,203.41,203.28,7.8585]
[1736285886788,4.52509672,203.41,203.23,23.24234754]
[1736285886789,0.12549,203.37,203.23,1.5088]
[1736285887294,0.12549,203.37,203.22,6.6085]
[1736285887650,0.12549,203.37,203.24,23.24234754]
[1736285887860,0.12549,203.37,203.25,23.24234754]
[1736285888780,0.12549,203.37,203.25,23.776884]
[1736285888977,0.12549,203.39,203.25,23.776884]
[1736285889150,0.12549,203.37,203.23,47.01923154]
[1736285889352,0.12549,203.37,203.23,38.30696797]
[1736285889552,0.12549,203.37,203.25,23.776884]
[1736285889867,0.12549,203.37,203.23,38.30696797]
[1736285890387,0.12549,203.37,203.25,23.776884]
[1736285890881,0.12549,203.37,203.23,38.30696797]
[1736285891780,0.12549,203.37,203.2,5.1379034]
[1736285892075,0.12549,203.34,203.2,4.4]
[1736285892453,0.12549,203.34,203.21,30.0]
[1736285892654,0.12549,203.32,203.21,30.0]
[1736285892952,0.12549,203.3,203.21,44.53008397]
[1736285893153,0.12549,203.3,203.22,23.776884]
[1736285893360,0.12549,203.32,203.22,23.776884]
[1736285893579,0.12549,203.32,203.2,4.4]
[1736285897185,0.12549,203.3,203.2,4.4]
[1736285897483,0.12549,203.28,203.2,4.4]
[1736285898996,1.7486,203.4,203.22,16.06178397]
[1736285899369,0.12549,203.39,203.22,16.06178397]
[1736285899565,0.12549,203.39,203.22,1.5317]
[1736285899762,0.12549,203.39,203.22,16.06178397]
[1736285900064,0.12549,203.39,203.22,1.5317]
[1736285900264,0.12549,203.35,203.22,1.5317]
[1736285903560,2.07839269,203.35,203.22,1.5317]
[1736285911175,22.07839269,203.35,203.22,1.5317]
[1736285911896,22.07839269,203.35,203.19,2.38]
[1736285913369,23.776884,203.34,203.16,16.10568397]
[1736285913599,20.0,203.31,203.16,18.48568397]
[1736285913987,2.38,203.37,203.17,23.776884]
[1736285914296,2.38,203.37,203.17,38.30696797]
[1736285914297,20.0,203.35,203.17,38.30696797]
[1736285914497,20.0,203.35,203.19,23.776884]
[1736285914669,4.33111242,203.37,203.2,6.525]
[1736285914874,20.12549,203.36,203.2,6.525]
[1736285915380,0.12549,203.36,203.21,39.88256797]
[1736285915701,0.12549,203.36,203.23,14.53008397]
[1736285916372,0.12549,203.36,203.21,39.88256797]
[1736285916573,0.12549,203.36,203.22,23.776884]
[1736285917288,0.12549,203.36,203.22,26.156884]
[1736285917608,0.12549,203.36,203.22,2.38]
[1736285926014,0.12549,203.32,203.22,2.38]
[1736285928418,0.12549,203.32,203.21,1.5756]
[1736285933986,0.12549,203.32,203.2,6.525]
[1736285934423,0.12549,203.32,203.16,3.885]
[1736285942116,0.12549,203.32,203.16,1.505]
[1736285942300,0.12549,203.28,203.16,1.505]
[1736285943312,1.7486,203.27,203.1,1.5135]
[1736285943522,2.50549,203.26,203.1,1.5135]
[1736285947712,2.50549,203.26,203.11,38.33024985]
[1736285948019,2.50549,203.26,203.13,23.776884]
[1736285948221,0.12549,203.26,203.14,14.55336585]
[1736285948401,0.12549,203.26,203.14,2.38]
[1736285949115,0.12549,203.26,203.15,23.776884]
[1736285949424,1.97705501,203.28,203.15,23.776884]
[1736285949721,0.12549,203.29,203.15,23.776884]
[1736285949923,20.12549,203.29,203.15,23.776884]
[1736285950426,20.12549,203.29,203.2,0.1]
[1736285950611,0.12549,203.29,203.2,0.1]
[1736285952029,20.12549,203.29,203.2,0.1]
[1736285952606,1.7486,203.32,203.2,0.1]
[1736285952856,1.7486,203.32,203.2,23.876884]
[1736285953126,0.12549,203.31,203.2,0.1]
[1736285960040,0.12549,203.31,203.2,14.65336585]
[1736285961047,0.12549,203.31,203.2,0.1]
[1736285961251,2.38,203.34,203.22,14.55336585]
[1736285961455,2.38,203.34,203.23,23.776884]
[1736285961747,0.12549,203.33,203.21,16.10646585]
[1736285961934,0.12549,203.33,203.21,1.5531]
[1736285962338,0.12549,203.34,203.21,1.5531]
[1736285965267,0.12549,203.34,203.21,16.10646585]
[1736285965565,3.74871357,203.37,203.25,14.55336585]
[1736285965856,0.12549,203.36,203.25,14.55336585]
[1736285966064,0.12549,203.34,203.24,14.55336585]
[1736285966236,0.12549,203.34,203.23,14.55336585]
[1736285966636,0.12549,203.36,203.23,14.55336585]
[1736285966951,20.12549,203.36,203.23,14.55336585]
[1736285967444,20.12549,203.36,203.25,23.776884]
[1736285969566,20.12549,203.36,203.23,9.29990902]
[1736285970252,0.12549,203.36,203.25,9.29990902]
[1736285970434,0.12549,203.36,203.25,11.67990902]
[1736285971167,0.12549,203.36,203.25,26.156884]
[1736285973154,0.12549,203.36,203.26,23.776884]
[1736285973861,0.12549,203.36,203.23,2.38]
[1736285974236,0.12549,203.36,203.24,23.776884]
[1736285976680,0.12549,203.36,203.24,33.07679302]
[1736285977378,0.12549,203.36,203.24,23.776884]
[1736285978186,0.12549,203.36,203.24,33.07679302]
[1736285979601,0.12549,203.36,203.24,23.776884]
[1736285985070,0.12549,203.36,203.22,26.156884]
[1736285985266,0.12549,203.36,203.22,35.45679302]
[1736285985486,0.12549,203.36,203.22,23.776884]
[1736285985677,0.12549,203.36,203.22,26.156884]
[1736285987498,0.12549,203.36,203.22,35.45679302]
[1736285988192,0.12549,203.36,203.22,26.156884]
[1736285988695,0.12549,203.36,203.2,2.48]
[1736285988877,20.12549,203.34,203.2,2.48]
[1736285989072,20.12549,203.34,203.21,23.776884]
[1736285990102,0.12549,203.34,203.21,23.776884]
[1736285994397,2.14678032,203.34,203.21,23.776884]
[1736285998904,0.12549,203.32,203.21,23.776884]
[1736285999307,0.12549,203.32,203.2,2.48]
[1736285999901,0.12549,203.32,203.2,0.1]
[1736286004017,1.87409,203.33,203.2,0.1]
[1736286005307,0.12549,203.26,203.2,0.1]
[1736286008226,0.12549,203.15,203.07,6.5453]
[1736286008531,0.12549,203.22,203.08,0.02476468]
[1736286008698,0.12549,203.22,203.07,18.22520902]
[1736286008894,0.12549,203.22,203.08,0.02476468]
[1736286009099,0.12549,203.22,203.07,18.22520902]
[1736286009329,0.12549,203.22,203.08,0.02476468]
[1736286009532,0.12549,203.22,203.07,18.22520902]
[1736286009833,0.12549,203.22,203.07,15.84520902]
[1736286010534,0.12549,203.22,203.08,23.776884]
[1736286011025,0.12549,203.22,203.09,9.29990902]
[1736286011232,0.12549,203.22,203.08,23.776884]
[1736286011633,0.12549,203.22,203.09,9.29990902]
[1736286011829,0.12549,203.22,203.08,33.07679302]
[1736286012134,0.12549,203.22,203.08,23.776884]
[1736286013633,0.12549,203.22,203.07,6.5453]
[1736286013792,0.12549,203.2,203.02,6.1597]
[1736286013998,0.12549,203.2,203.03,2.38]
[1736286014223,0.12549,203.2,203.03,11.67990902]
[1736286016342,0.12549,203.2,203.04,23.776884]
[1736286018356,0.12549,203.2,203.07,9.29990902]
[1736286018642,0.12549,203.2,203.09,9.29990902]
[1736286019540,0.12549,203.2,203.04,23.776884]
[1736286019745,0.12549,203.2,203.06,33.07679302]
[1736286019928,0.12549,203.2,203.07,9.29990902]
[1736286020523,0.12549,203.2,203.08,9.29990902]
[1736286020858,2.07637494,203.2,203.07,9.29990902]
[1736286021021,2.07637494,203.2,203.06,33.07679302]
[1736286021453,2.07637494,203.2,203.07,9.29990902]
[1736286022420,0.12549,203.18,203.07,9.29990902]
[1736286023335,0.12549,203.18,203.08,9.29990902]